[Event "Titled Tuesday Blitz August 1 Early 2023"]
[White "Cheer_Down"]
[Black "Postlmayer, Jakob"]
[BlackFideId "1643622"]
[WhiteElo "2421"]
[BlackElo "2552"]
[Result "0-1"]
[Round "5"]
[TimeControl "180+1"]
[Date "2023.08.01"]
[WhiteClock "0:00:00"]
[BlackClock "0:00:06"]
[Board "127"]

1. e4 {[%clk 0:02:59]}  c5 {[%clk 0:02:59]} 2. Nf3 {[%clk 0:02:55]}  e6 {[%clk 0:02:59]} 3. g3 {[%clk 0:02:53]}  Nc6 {[%clk 0:02:58]} 4. Bg2 {[%clk 0:02:52]}  Nf6 {[%clk 0:02:59]} 5. Qe2 {[%clk 0:02:51]}  e5 {[%clk 0:02:56]} 6. c3 {[%clk 0:02:47]}  Be7 {[%clk 0:02:55]} 7. O-O {[%clk 0:02:44]}  O-O {[%clk 0:02:54]} 8. Na3 {[%clk 0:02:37]}  d6 {[%clk 0:02:52]} 9. Nc2 {[%clk 0:02:29]}  Re8 {[%clk 0:02:48]} 10. d4 {[%clk 0:02:29]}  Bf8 {[%clk 0:02:48]} 11. dxc5 {[%clk 0:02:24]}  dxc5 {[%clk 0:02:47]} 12. Bg5 {[%clk 0:02:23]}  h6 {[%clk 0:02:44]} 13. Bxf6 {[%clk 0:02:23]}  Qxf6 {[%clk 0:02:45]} 14. Ne3 {[%clk 0:02:23]}  Be6 {[%clk 0:02:45]} 15. Nh4 {[%clk 0:02:16]}  Rad8 {[%clk 0:02:42]} 16. b3 {[%clk 0:02:06]}  g6 {[%clk 0:02:36]} 17. Rad1 {[%clk 0:01:58]}  Rxd1 {[%clk 0:02:34]} 18. Rxd1 {[%clk 0:01:58]}  Rd8 {[%clk 0:02:35]} 19. Rxd8 {[%clk 0:01:54]}  Qxd8 {[%clk 0:02:36]} 20. Nd5 {[%clk 0:01:55]}  Be7 {[%clk 0:02:30]} 21. Qb5 {[%clk 0:01:35]}  Bc8 {[%clk 0:01:26]} 22. Nf3 {[%clk 0:01:28]}  Bf8 {[%clk 0:01:17]} 23. Nd2 {[%clk 0:01:24]}  a6 {[%clk 0:01:12]} 24. Qb6 {[%clk 0:01:23]}  Qxb6 {[%clk 0:01:09]} 25. Nxb6 {[%clk 0:01:24]}  Be6 {[%clk 0:01:09]} 26. Nd5 {[%clk 0:01:24]}  b5 {[%clk 0:00:45]} 27. a4 {[%clk 0:01:22]}  Bd6 {[%clk 0:00:44]} 28. Bf1 {[%clk 0:01:20]}  Na7 {[%clk 0:00:43]} 29. Nb1 {[%clk 0:01:04]}  Kg7 {[%clk 0:00:37]} 30. Na3 {[%clk 0:01:04]}  Bxd5 {[%clk 0:00:34]} 31. exd5 {[%clk 0:01:03]}  c4 {[%clk 0:00:34]} 32. axb5 {[%clk 0:01:00]}  axb5 {[%clk 0:00:26]} 33. b4 {[%clk 0:00:58]}  e4 {[%clk 0:00:21]} 34. f3 {[%clk 0:00:53]}  exf3 {[%clk 0:00:20]} 35. Kf2 {[%clk 0:00:52]}  Kf6 {[%clk 0:00:20]} 36. Kxf3 {[%clk 0:00:50]}  Ke5 {[%clk 0:00:20]} 37. Nc2 {[%clk 0:00:47]}  Kxd5 {[%clk 0:00:20]} 38. Ne3+ {[%clk 0:00:47]}  Ke6 {[%clk 0:00:19]} 39. Bh3+ {[%clk 0:00:44]}  f5 {[%clk 0:00:19]} 40. g4 {[%clk 0:00:45]}  fxg4+ {[%clk 0:00:16]} 41. Bxg4+ {[%clk 0:00:45]}  Kf7 {[%clk 0:00:15]} 42. h3 {[%clk 0:00:42]}  Be5 {[%clk 0:00:14]} 43. Nd5 {[%clk 0:00:41]}  h5 {[%clk 0:00:12]} 44. Bd7 {[%clk 0:00:40]}  Bg7 {[%clk 0:00:11]} 45. Ke4 {[%clk 0:00:39]}  g5 {[%clk 0:00:10]} 46. Kf5 {[%clk 0:00:36]}  Bh6 {[%clk 0:00:10]} 47. Be6+ {[%clk 0:00:26]}  Kf8 {[%clk 0:00:10]} 48. Kg6 {[%clk 0:00:21]}  Bg7 {[%clk 0:00:09]} 49. Kxg5 {[%clk 0:00:20]}  Nc6 {[%clk 0:00:07]} 50. Kf5 {[%clk 0:00:16]}  Ne7+ {[%clk 0:00:07]} 51. Nxe7 {[%clk 0:00:12]}  Kxe7 {[%clk 0:00:08]} 52. Bc8 {[%clk 0:00:09]}  Kd6 {[%clk 0:00:07]} 53. Ba6 {[%clk 0:00:09]}  Kc6 {[%clk 0:00:07]} 54. Kg5 {[%clk 0:00:06]}  Bxc3 {[%clk 0:00:07]} 55. Kxh5 {[%clk 0:00:07]}  Bxb4 {[%clk 0:00:08]} 56. Kg4 {[%clk 0:00:06]}  Bd2 {[%clk 0:00:08]} 57. Kf3 {[%clk 0:00:06]}  Kc5 {[%clk 0:00:08]} 58. Ke2 {[%clk 0:00:06]}  Bh6 {[%clk 0:00:08]} 59. Bc8 {[%clk 0:00:04]}  b4 {[%clk 0:00:09]} 60. Kd1 {[%clk 0:00:04]}  Kd4 {[%clk 0:00:09]} 61. Kc2 {[%clk 0:00:04]}  b3+ {[%clk 0:00:09]} 62. Kb2 {[%clk 0:00:05]}  Bg7 {[%clk 0:00:10]} 63. Be6 {[%clk 0:00:04]}  Kc5+ {[%clk 0:00:10]} 64. Kb1 {[%clk 0:00:04]}  Kb4 {[%clk 0:00:10]} 65. Bf5 {[%clk 0:00:03]}  Kc3 {[%clk 0:00:10]} 66. Bg6 {[%clk 0:00:03]}  Kb4 {[%clk 0:00:08]} 67. Bf5 {[%clk 0:00:02]}  Bf6 {[%clk 0:00:08]} 68. Bg6 {[%clk 0:00:02]}  Kc5 {[%clk 0:00:08]} 69. Bf5 {[%clk 0:00:02]}  Kd4 {[%clk 0:00:08]} 70. Bg6 {[%clk 0:00:03]}  c3 {[%clk 0:00:07]} 71. Bf5 {[%clk 0:00:01]}  Ke3 {[%clk 0:00:07]} 72. Kc1 {[%clk 0:00:00]}  Bg5 {[%clk 0:00:06]} 0-1


[Site "https://www.chess.com"]

[Event "Titled Tuesday Blitz August 1 Early 2023"]
[White "Bazilius, Augustinas"]
[Black "Remolar Gallen, Jose"]
[WhiteFideId "12832251"]
[BlackFideId "2215187"]
[WhiteElo "2410"]
[BlackElo "2545"]
[Result "1-0"]
[Round "5"]
[TimeControl "180+1"]
[Date "2023.08.01"]
[WhiteClock "0:00:09"]
[BlackClock "0:00:00"]
[Board "131"]

1. d4 {[%clk 0:03:00]}  Nf6 {[%clk 0:02:57]} 2. c4 {[%clk 0:02:52]}  g6 {[%clk 0:02:57]} 3. Nc3 {[%clk 0:02:49]}  Bg7 {[%clk 0:02:57]} 4. e4 {[%clk 0:02:49]}  d6 {[%clk 0:02:57]} 5. h3 {[%clk 0:02:49]}  O-O {[%clk 0:02:57]} 6. Be3 {[%clk 0:02:50]}  e5 {[%clk 0:02:55]} 7. d5 {[%clk 0:02:50]}  Na6 {[%clk 0:02:56]} 8. g4 {[%clk 0:02:33]}  Nc5 {[%clk 0:02:56]} 9. f3 {[%clk 0:02:33]}  a5 {[%clk 0:02:55]} 10. Qd2 {[%clk 0:02:30]}  Ne8 {[%clk 0:02:52]} 11. h4 {[%clk 0:02:24]}  f5 {[%clk 0:02:52]} 12. exf5 {[%clk 0:02:15]}  gxf5 {[%clk 0:02:52]} 13. gxf5 {[%clk 0:02:16]}  Bxf5 {[%clk 0:02:52]} 14. O-O-O {[%clk 0:01:29]}  a4 {[%clk 0:02:47]} 15. Bh3 {[%clk 0:01:16]}  Qf6 {[%clk 0:02:38]} 16. Bg5 {[%clk 0:00:47]}  Qf7 {[%clk 0:02:38]} 17. Nge2 {[%clk 0:00:39]}  a3 {[%clk 0:02:11]} 18. b3 {[%clk 0:00:32]}  Nd3+ {[%clk 0:02:04]} 19. Qxd3 {[%clk 0:00:18]}  Bxd3 {[%clk 0:02:02]} 20. Be6 {[%clk 0:00:13]}  Bxe2 {[%clk 0:01:43]} 21. Bxf7+ {[%clk 0:00:12]}  Rxf7 {[%clk 0:01:42]} 22. Nxe2 {[%clk 0:00:13]}  Rxf3 {[%clk 0:01:42]} 23. Rdf1 {[%clk 0:00:10]}  Rxf1+ {[%clk 0:01:36]} 24. Rxf1 {[%clk 0:00:10]}  h6 {[%clk 0:01:32]} 25. Be3 {[%clk 0:00:08]}  Nf6 {[%clk 0:01:32]} 26. Ng3 {[%clk 0:00:07]}  Ng4 {[%clk 0:01:30]} 27. Bd2 {[%clk 0:00:04]}  Rf8 {[%clk 0:01:18]} 28. Rg1 {[%clk 0:00:05]}  e4 {[%clk 0:00:10]} 29. Nh5 {[%clk 0:00:05]}  e3 {[%clk 0:00:09]} 30. Rxg4 {[%clk 0:00:05]}  exd2+ {[%clk 0:00:09]} 31. Kxd2 {[%clk 0:00:06]}  Rf7 {[%clk 0:00:10]} 32. Kd3 {[%clk 0:00:04]}  Kh7 {[%clk 0:00:11]} 33. Rxg7+ {[%clk 0:00:05]}  Rxg7 {[%clk 0:00:12]} 34. Nxg7 {[%clk 0:00:05]}  Kxg7 {[%clk 0:00:12]} 35. Ke4 {[%clk 0:00:04]}  Kg6 {[%clk 0:00:12]} 36. Kf4 {[%clk 0:00:05]}  Kh5 {[%clk 0:00:12]} 37. Kg3 {[%clk 0:00:05]}  c5 {[%clk 0:00:10]} 38. dxc6 {[%clk 0:00:04]}  bxc6 {[%clk 0:00:11]} 39. b4 {[%clk 0:00:05]}  d5 {[%clk 0:00:10]} 40. cxd5 {[%clk 0:00:05]}  cxd5 {[%clk 0:00:11]} 41. b5 {[%clk 0:00:06]}  d4 {[%clk 0:00:11]} 42. b6 {[%clk 0:00:07]}  d3 {[%clk 0:00:11]} 43. Kf3 {[%clk 0:00:07]}  d2 {[%clk 0:00:10]} 44. Ke2 {[%clk 0:00:08]}  Kxh4 {[%clk 0:00:00]} 45. b7 {[%clk 0:00:09]} 1-0


[Site "https://www.chess.com"]

[Event "Titled Tuesday Blitz August 1 Early 2023"]
[White "Ganiev, Roman"]
[Black "Silva Lucena, Cristian"]
[WhiteFideId "4131452"]
[BlackFideId "2232588"]
[WhiteElo "2544"]
[BlackElo "2411"]
[Result "1-0"]
[Round "5"]
[TimeControl "180+1"]
[Date "2023.08.01"]
[WhiteClock "0:00:04"]
[BlackClock "0:00:08"]
[Board "132"]

1. e4 {[%clk 0:03:00]}  c6 {[%clk 0:02:59]} 2. d4 {[%clk 0:03:00]}  d5 {[%clk 0:02:59]} 3. Nc3 {[%clk 0:03:00]}  dxe4 {[%clk 0:02:59]} 4. Nxe4 {[%clk 0:02:59]}  Nf6 {[%clk 0:03:00]} 5. Nxf6+ {[%clk 0:03:00]}  exf6 {[%clk 0:03:01]} 6. c3 {[%clk 0:03:00]}  Bd6 {[%clk 0:03:01]} 7. Bd3 {[%clk 0:03:01]}  O-O {[%clk 0:03:02]} 8. Ne2 {[%clk 0:03:01]}  Re8 {[%clk 0:03:03]} 9. O-O {[%clk 0:03:01]}  h5 {[%clk 0:03:03]} 10. Nf4 {[%clk 0:02:59]}  Qc7 {[%clk 0:02:51]} 11. g3 {[%clk 0:02:51]}  h4 {[%clk 0:02:51]} 12. Qh5 {[%clk 0:02:50]}  hxg3 {[%clk 0:02:46]} 13. hxg3 {[%clk 0:02:44]}  f5 {[%clk 0:02:05]} 14. Bxf5 {[%clk 0:02:37]}  Bxf5 {[%clk 0:02:04]} 15. Qxf5 {[%clk 0:02:38]}  b6 {[%clk 0:02:05]} 16. Kg2 {[%clk 0:02:35]}  Qc8 {[%clk 0:02:01]} 17. Qh5 {[%clk 0:01:54]}  Re6 {[%clk 0:01:55]} 18. Nxe6 {[%clk 0:01:53]}  Qxe6 {[%clk 0:01:56]} 19. Qf3 {[%clk 0:01:51]}  Qd5 {[%clk 0:01:52]} 20. Qxd5 {[%clk 0:01:47]}  cxd5 {[%clk 0:01:53]} 21. Kf3 {[%clk 0:01:32]}  Nd7 {[%clk 0:01:50]} 22. Bf4 {[%clk 0:01:32]}  Bf8 {[%clk 0:01:44]} 23. Rfe1 {[%clk 0:01:29]}  Rc8 {[%clk 0:01:41]} 24. a4 {[%clk 0:01:24]}  f6 {[%clk 0:01:39]} 25. g4 {[%clk 0:01:16]}  g5 {[%clk 0:01:36]} 26. Bg3 {[%clk 0:01:12]}  Kf7 {[%clk 0:01:36]} 27. Rh1 {[%clk 0:01:10]}  Rc6 {[%clk 0:01:33]} 28. Rh7+ {[%clk 0:01:05]}  Bg7 {[%clk 0:01:29]} 29. Re1 {[%clk 0:01:05]}  Nf8 {[%clk 0:01:25]} 30. Rxg7+ {[%clk 0:00:45]}  Kxg7 {[%clk 0:01:24]} 31. Re7+ {[%clk 0:00:46]}  Kg6 {[%clk 0:01:19]} 32. Rxa7 {[%clk 0:00:47]}  Re6 {[%clk 0:01:18]} 33. Rb7 {[%clk 0:00:41]}  Rc6 {[%clk 0:01:15]} 34. Rc7 {[%clk 0:00:38]}  Re6 {[%clk 0:01:11]} 35. b4 {[%clk 0:00:31]}  Re1 {[%clk 0:01:11]} 36. a5 {[%clk 0:00:31]}  bxa5 {[%clk 0:01:07]} 37. bxa5 {[%clk 0:00:32]}  Ra1 {[%clk 0:01:06]} 38. Rc5 {[%clk 0:00:30]}  Kf7 {[%clk 0:01:01]} 39. Rxd5 {[%clk 0:00:28]}  Ra3 {[%clk 0:01:01]} 40. Rc5 {[%clk 0:00:17]}  Ne6 {[%clk 0:01:02]} 41. Rc4 {[%clk 0:00:10]}  Rxa5 {[%clk 0:00:59]} 42. Ke4 {[%clk 0:00:11]}  Ra2 {[%clk 0:00:55]} 43. Rb4 {[%clk 0:00:11]}  Re2+ {[%clk 0:00:50]} 44. Kd5 {[%clk 0:00:11]}  Nf4+ {[%clk 0:00:44]} 45. Bxf4 {[%clk 0:00:11]}  gxf4 {[%clk 0:00:45]} 46. Rb7+ {[%clk 0:00:11]}  Kg6 {[%clk 0:00:40]} 47. f3 {[%clk 0:00:11]}  Re3 {[%clk 0:00:36]} 48. c4 {[%clk 0:00:10]}  Rxf3 {[%clk 0:00:36]} 49. c5 {[%clk 0:00:10]}  Rc3 {[%clk 0:00:37]} 50. Rb2 {[%clk 0:00:08]}  Kg5 {[%clk 0:00:34]} 51. Kd6 {[%clk 0:00:05]}  Kxg4 {[%clk 0:00:26]} 52. c6 {[%clk 0:00:05]}  f3 {[%clk 0:00:24]} 53. d5 {[%clk 0:00:05]}  Kg3 {[%clk 0:00:23]} 54. c7 {[%clk 0:00:04]}  Rc1 {[%clk 0:00:18]} 55. Kd7 {[%clk 0:00:03]}  f2 {[%clk 0:00:17]} 56. Rxf2 {[%clk 0:00:02]}  Kxf2 {[%clk 0:00:17]} 57. d6 {[%clk 0:00:03]}  f5 {[%clk 0:00:16]} 58. Ke6 {[%clk 0:00:03]}  f4 {[%clk 0:00:16]} 59. d7 {[%clk 0:00:04]}  Rxc7 {[%clk 0:00:16]} 60. d8=Q {[%clk 0:00:04]}  Rc2 {[%clk 0:00:16]} 61. Qd4+ {[%clk 0:00:04]}  Ke2 {[%clk 0:00:15]} 62. Qe4+ {[%clk 0:00:03]}  Kd2 {[%clk 0:00:16]} 63. Qxf4+ {[%clk 0:00:03]}  Kc3 {[%clk 0:00:15]} 64. Kd5 {[%clk 0:00:04]}  Kb3 {[%clk 0:00:15]} 65. Qe3+ {[%clk 0:00:04]}  Rc3 {[%clk 0:00:16]} 66. Qd2 {[%clk 0:00:04]}  Rc2 {[%clk 0:00:16]} 67. Qd1 {[%clk 0:00:04]}  Kc3 {[%clk 0:00:16]} 68. Kc5 {[%clk 0:00:04]}  Kb2+ {[%clk 0:00:16]} 69. Kb5 {[%clk 0:00:05]}  Rc3 {[%clk 0:00:16]} 70. Kb4 {[%clk 0:00:05]}  Rc2 {[%clk 0:00:16]} 71. Qd4+ {[%clk 0:00:05]}  Kc1 {[%clk 0:00:16]} 72. Kb3 {[%clk 0:00:05]}  Rd2 {[%clk 0:00:14]} 73. Qg1+ {[%clk 0:00:05]}  Rd1 {[%clk 0:00:14]} 74. Qf2 {[%clk 0:00:05]}  Rd3+ {[%clk 0:00:15]} 75. Kc4 {[%clk 0:00:05]}  Rd2 {[%clk 0:00:14]} 76. Qe3 {[%clk 0:00:04]}  Kc2 {[%clk 0:00:14]} 77. Qb3+ {[%clk 0:00:04]}  Kc1 {[%clk 0:00:14]} 78. Qe3 {[%clk 0:00:04]}  Kc2 {[%clk 0:00:14]} 79. Qe1 {[%clk 0:00:04]}  Rd1 {[%clk 0:00:13]} 80. Qe4+ {[%clk 0:00:04]}  Kc1 {[%clk 0:00:14]} 81. Kc3 {[%clk 0:00:03]}  Rd2 {[%clk 0:00:14]} 82. Qe1+ {[%clk 0:00:03]}  Rd1 {[%clk 0:00:15]} 83. Qe3+ {[%clk 0:00:03]}  Kb1 {[%clk 0:00:14]} 84. Qf2 {[%clk 0:00:04]}  Rc1+ {[%clk 0:00:13]} 85. Kb3 {[%clk 0:00:04]}  Rc3+ {[%clk 0:00:08]} 86. Kxc3 {[%clk 0:00:04]} 1-0


[Site "https://www.chess.com"]

[Event "Titled Tuesday Blitz August 1 Early 2023"]
[White "jimmy-schlumpf"]
[Black "Womacka, Mathias"]
[BlackFideId "4611390"]
[WhiteElo "2400"]
[BlackElo "2542"]
[Result "1/2-1/2"]
[Round "5"]
[TimeControl "180+1"]
[Date "2023.08.01"]
[WhiteClock "0:01:34"]
[BlackClock "0:01:43"]
[Board "133"]

1. d4 {[%clk 0:03:00]}  Nf6 {[%clk 0:02:59]} 2. Nf3 {[%clk 0:03:00]}  e6 {[%clk 0:02:59]} 3. c4 {[%clk 0:03:01]}  Bb4+ {[%clk 0:02:55]} 4. Nbd2 {[%clk 0:03:00]}  O-O {[%clk 0:02:53]} 5. a3 {[%clk 0:03:00]}  Be7 {[%clk 0:02:53]} 6. e4 {[%clk 0:02:59]}  d5 {[%clk 0:02:54]} 7. e5 {[%clk 0:02:55]}  Nfd7 {[%clk 0:02:53]} 8. cxd5 {[%clk 0:02:54]}  exd5 {[%clk 0:02:52]} 9. Bd3 {[%clk 0:02:50]}  c5 {[%clk 0:02:53]} 10. O-O {[%clk 0:02:47]}  Nc6 {[%clk 0:02:50]} 11. Qc2 {[%clk 0:02:39]}  h6 {[%clk 0:02:47]} 12. Re1 {[%clk 0:02:33]}  a5 {[%clk 0:02:36]} 13. b3 {[%clk 0:02:10]}  cxd4 {[%clk 0:02:32]} 14. Bb2 {[%clk 0:02:07]}  Nc5 {[%clk 0:02:32]} 15. Nxd4 {[%clk 0:01:57]}  Nxd4 {[%clk 0:02:07]} 16. Bxd4 {[%clk 0:01:54]}  Nxd3 {[%clk 0:02:06]} 17. Qxd3 {[%clk 0:01:53]}  Be6 {[%clk 0:02:03]} 18. Rec1 {[%clk 0:01:37]}  Qd7 {[%clk 0:01:43]} 19. Bc5 {[%clk 0:01:34]} 1/2-1/2


[Site "https://www.chess.com"]

[Event "Titled Tuesday Blitz August 1 Early 2023"]
[White "Begunov, Konstantin"]
[Black "Malka, Samuel"]
[WhiteFideId "4118510"]
[BlackFideId "20643675"]
[WhiteElo "2395"]
[BlackElo "2542"]
[Result "1-0"]
[Round "5"]
[TimeControl "180+1"]
[Date "2023.08.01"]
[WhiteClock "0:01:22"]
[BlackClock "0:00:16"]
[Board "134"]

1. d4 {[%clk 0:02:53]}  Nf6 {[%clk 0:02:59]} 2. c4 {[%clk 0:02:52]}  g6 {[%clk 0:02:59]} 3. f3 {[%clk 0:02:52]}  Bg7 {[%clk 0:02:58]} 4. e4 {[%clk 0:02:53]}  d6 {[%clk 0:02:59]} 5. Nc3 {[%clk 0:02:54]}  O-O {[%clk 0:02:59]} 6. Be3 {[%clk 0:02:54]}  a6 {[%clk 0:02:57]} 7. Qd2 {[%clk 0:02:53]}  Nc6 {[%clk 0:02:57]} 8. Nge2 {[%clk 0:02:52]}  Na5 {[%clk 0:02:58]} 9. Nc1 {[%clk 0:02:49]}  Nd7 {[%clk 0:02:55]} 10. b4 {[%clk 0:02:43]}  Nc6 {[%clk 0:02:53]} 11. a3 {[%clk 0:02:38]}  e5 {[%clk 0:02:53]} 12. Nb3 {[%clk 0:02:38]}  f5 {[%clk 0:02:27]} 13. d5 {[%clk 0:02:36]}  Nd4 {[%clk 0:02:27]} 14. Nxd4 {[%clk 0:02:32]}  exd4 {[%clk 0:02:26]} 15. Bxd4 {[%clk 0:02:33]}  Bxd4 {[%clk 0:02:05]} 16. Qxd4 {[%clk 0:02:34]}  Ne5 {[%clk 0:01:56]} 17. Be2 {[%clk 0:02:20]}  Qh4+ {[%clk 0:01:52]} 18. g3 {[%clk 0:02:10]}  Qh3 {[%clk 0:01:50]} 19. f4 {[%clk 0:02:04]}  Ng4 {[%clk 0:00:58]} 20. Bxg4 {[%clk 0:02:02]}  Qxg4 {[%clk 0:00:59]} 21. O-O {[%clk 0:01:54]}  Bd7 {[%clk 0:00:50]} 22. Rae1 {[%clk 0:01:35]}  Rae8 {[%clk 0:00:48]} 23. Kg2 {[%clk 0:01:27]}  h5 {[%clk 0:00:16]} 24. h3 {[%clk 0:01:22]} 1-0


[Site "https://www.chess.com"]

[Event "Titled Tuesday Blitz August 1 Early 2023"]
[White "Rosenberg, Evan S"]
[Black "Andreev, Konstantin"]
[WhiteFideId "2019299"]
[BlackFideId "24239305"]
[WhiteElo "2394"]
[BlackElo "2540"]
[Result "0-1"]
[Round "5"]
[TimeControl "180+1"]
[Date "2023.08.01"]
[WhiteClock "0:00:02"]
[BlackClock "0:00:31"]
[Board "136"]

1. d4 {[%clk 0:02:50]}  Nf6 {[%clk 0:02:58]} 2. Nf3 {[%clk 0:02:47]}  d5 {[%clk 0:02:58]} 3. Bg5 {[%clk 0:02:46]}  Ne4 {[%clk 0:02:56]} 4. Bh4 {[%clk 0:02:47]}  h6 {[%clk 0:02:53]} 5. c4 {[%clk 0:02:36]}  c6 {[%clk 0:02:52]} 6. Nc3 {[%clk 0:02:29]}  Bf5 {[%clk 0:02:48]} 7. Qb3 {[%clk 0:02:23]}  Qb6 {[%clk 0:02:46]} 8. c5 {[%clk 0:02:21]}  Qxb3 {[%clk 0:02:39]} 9. axb3 {[%clk 0:02:22]}  Na6 {[%clk 0:02:38]} 10. Ra4 {[%clk 0:02:15]}  Nc7 {[%clk 0:02:18]} 11. e3 {[%clk 0:02:10]}  a6 {[%clk 0:02:15]} 12. Nd2 {[%clk 0:02:02]}  Nxd2 {[%clk 0:02:07]} 13. Kxd2 {[%clk 0:02:03]}  e6 {[%clk 0:02:05]} 14. Bg3 {[%clk 0:01:58]}  Kd7 {[%clk 0:02:01]} 15. f3 {[%clk 0:01:58]}  Rc8 {[%clk 0:01:58]} 16. e4 {[%clk 0:01:49]}  Bh7 {[%clk 0:01:52]} 17. Bd3 {[%clk 0:01:18]}  Be7 {[%clk 0:01:50]} 18. h4 {[%clk 0:01:12]}  h5 {[%clk 0:01:45]} 19. Re1 {[%clk 0:01:09]}  Bf6 {[%clk 0:01:42]} 20. e5 {[%clk 0:01:09]}  Be7 {[%clk 0:01:41]} 21. Bf1 {[%clk 0:00:58]}  Rhg8 {[%clk 0:01:36]} 22. f4 {[%clk 0:00:54]}  f6 {[%clk 0:01:34]} 23. Be2 {[%clk 0:00:44]}  fxe5 {[%clk 0:01:27]} 24. fxe5 {[%clk 0:00:42]}  g5 {[%clk 0:01:26]} 25. Bf3 {[%clk 0:00:33]}  gxh4 {[%clk 0:01:23]} 26. Bf4 {[%clk 0:00:33]}  Bg5 {[%clk 0:01:19]} 27. Bxg5 {[%clk 0:00:33]}  Rxg5 {[%clk 0:01:20]} 28. Rh1 {[%clk 0:00:30]}  Rcg8 {[%clk 0:01:07]} 29. Ne2 {[%clk 0:00:24]}  Be4 {[%clk 0:01:02]} 30. Rxh4 {[%clk 0:00:15]}  Rf8 {[%clk 0:00:56]} 31. Bxe4 {[%clk 0:00:14]}  dxe4 {[%clk 0:00:56]} 32. g3 {[%clk 0:00:13]}  Nd5 {[%clk 0:00:49]} 33. Rxe4 {[%clk 0:00:11]}  Rf2 {[%clk 0:00:50]} 34. Ke1 {[%clk 0:00:11]}  Rgf5 {[%clk 0:00:46]} 35. Nf4 {[%clk 0:00:10]}  Rxb2 {[%clk 0:00:45]} 36. Nxd5 {[%clk 0:00:09]}  cxd5 {[%clk 0:00:46]} 37. Rf4 {[%clk 0:00:09]}  Rxf4 {[%clk 0:00:44]} 38. gxf4 {[%clk 0:00:09]}  Rxb3 {[%clk 0:00:45]} 39. Ke2 {[%clk 0:00:09]}  h4 {[%clk 0:00:43]} 40. Ra1 {[%clk 0:00:07]}  h3 {[%clk 0:00:43]} 41. Rh1 {[%clk 0:00:06]}  h2 {[%clk 0:00:44]} 42. Kd2 {[%clk 0:00:02]}  Rb2+ {[%clk 0:00:43]} 43. Kc3 {[%clk 0:00:02]}  Rf2 {[%clk 0:00:43]} 44. Kd3 {[%clk 0:00:02]}  Kc6 {[%clk 0:00:43]} 45. Ke3 {[%clk 0:00:02]}  Rb2 {[%clk 0:00:43]} 46. f5 {[%clk 0:00:03]}  exf5 {[%clk 0:00:43]} 47. e6 {[%clk 0:00:03]}  Kc7 {[%clk 0:00:38]} 48. Kf4 {[%clk 0:00:04]}  Kd8 {[%clk 0:00:39]} 49. Kxf5 {[%clk 0:00:04]}  Ke7 {[%clk 0:00:37]} 50. Ke5 {[%clk 0:00:05]}  a5 {[%clk 0:00:37]} 51. Kxd5 {[%clk 0:00:05]}  a4 {[%clk 0:00:38]} 52. Kc4 {[%clk 0:00:05]}  a3 {[%clk 0:00:36]} 53. d5 {[%clk 0:00:06]}  Re2 {[%clk 0:00:33]} 54. Kb3 {[%clk 0:00:05]}  a2 {[%clk 0:00:33]} 55. c6 {[%clk 0:00:04]}  bxc6 {[%clk 0:00:32]} 56. dxc6 {[%clk 0:00:05]}  Kxe6 {[%clk 0:00:31]} 57. c7 {[%clk 0:00:05]}  Kd7 {[%clk 0:00:31]} 58. Rc1 {[%clk 0:00:02]}  Kc8 {[%clk 0:00:31]} 0-1


[Site "https://www.chess.com"]

[Event "Titled Tuesday Blitz August 1 Early 2023"]
[White "Foerster-Yialamas, Lucas"]
[Black "Al-Tarboush, Ward"]
[WhiteFideId "30901774"]
[BlackFideId "7601450"]
[WhiteElo "2391"]
[BlackElo "2540"]
[Result "1/2-1/2"]
[Round "5"]
[TimeControl "180+1"]
[Date "2023.08.01"]
[WhiteClock "0:00:08"]
[BlackClock "0:01:21"]
[Board "137"]

1. e4 {[%clk 0:02:56]}  c5 {[%clk 0:02:59]} 2. Nf3 {[%clk 0:02:55]}  Nc6 {[%clk 0:02:59]} 3. d4 {[%clk 0:02:55]}  cxd4 {[%clk 0:02:59]} 4. Nxd4 {[%clk 0:02:56]}  Nf6 {[%clk 0:03:00]} 5. Nxc6 {[%clk 0:02:54]}  bxc6 {[%clk 0:02:58]} 6. Nc3 {[%clk 0:02:54]}  e5 {[%clk 0:02:58]} 7. Bg5 {[%clk 0:02:52]}  Bb4 {[%clk 0:02:58]} 8. Qf3 {[%clk 0:02:48]}  O-O {[%clk 0:02:54]} 9. Bxf6 {[%clk 0:02:47]}  Qxf6 {[%clk 0:02:54]} 10. Qxf6 {[%clk 0:02:47]}  gxf6 {[%clk 0:02:55]} 11. Bc4 {[%clk 0:02:40]}  d6 {[%clk 0:02:49]} 12. Rd1 {[%clk 0:02:30]}  Be6 {[%clk 0:02:48]} 13. Bxe6 {[%clk 0:02:29]}  fxe6 {[%clk 0:02:49]} 14. Ke2 {[%clk 0:02:28]}  Bxc3 {[%clk 0:02:47]} 15. bxc3 {[%clk 0:02:27]}  d5 {[%clk 0:02:48]} 16. f3 {[%clk 0:02:24]}  Rab8 {[%clk 0:02:46]} 17. Rb1 {[%clk 0:02:23]}  Rb6 {[%clk 0:02:44]} 18. Rxb6 {[%clk 0:02:18]}  axb6 {[%clk 0:02:45]} 19. Rb1 {[%clk 0:02:18]}  b5 {[%clk 0:02:45]} 20. a3 {[%clk 0:01:54]}  Kf7 {[%clk 0:02:43]} 21. Ke3 {[%clk 0:01:53]}  Ke7 {[%clk 0:02:41]} 22. f4 {[%clk 0:01:51]}  Kd6 {[%clk 0:02:39]} 23. g3 {[%clk 0:01:39]}  Ra8 {[%clk 0:02:38]} 24. Rb3 {[%clk 0:01:39]}  Ra4 {[%clk 0:02:38]} 25. exd5 {[%clk 0:01:30]}  exd5 {[%clk 0:02:39]} 26. fxe5+ {[%clk 0:01:28]}  fxe5 {[%clk 0:02:39]} 27. Kd2 {[%clk 0:01:23]}  h5 {[%clk 0:02:37]} 28. Rb4 {[%clk 0:01:22]}  Ke6 {[%clk 0:02:06]} 29. Rxa4 {[%clk 0:01:13]}  bxa4 {[%clk 0:02:05]} 30. c4 {[%clk 0:01:11]}  d4 {[%clk 0:01:57]} 31. Kd3 {[%clk 0:00:45]}  Kf5 {[%clk 0:01:56]} 32. c5 {[%clk 0:00:42]}  Kg4 {[%clk 0:01:49]} 33. Ke4 {[%clk 0:00:29]}  Kh3 {[%clk 0:01:50]} 34. Kxe5 {[%clk 0:00:30]}  Kxh2 {[%clk 0:01:50]} 35. Kd6 {[%clk 0:00:30]}  Kxg3 {[%clk 0:01:50]} 36. Kxc6 {[%clk 0:00:31]}  h4 {[%clk 0:01:51]} 37. Kb5 {[%clk 0:00:21]}  h3 {[%clk 0:01:47]} 38. c6 {[%clk 0:00:22]}  h2 {[%clk 0:01:47]} 39. c7 {[%clk 0:00:22]}  h1=Q {[%clk 0:01:47]} 40. c8=Q {[%clk 0:00:22]}  Kf2 {[%clk 0:01:36]} 41. Kxa4 {[%clk 0:00:20]}  Ke3 {[%clk 0:01:32]} 42. Qc4 {[%clk 0:00:19]}  Qa8+ {[%clk 0:01:31]} 43. Kb3 {[%clk 0:00:19]}  Qb7+ {[%clk 0:01:31]} 44. Ka2 {[%clk 0:00:19]}  Qe4 {[%clk 0:01:27]} 45. a4 {[%clk 0:00:18]}  Kd2 {[%clk 0:01:28]} 46. Kb3 {[%clk 0:00:15]}  Qe3+ {[%clk 0:01:27]} 47. Qd3+ {[%clk 0:00:14]}  Qxd3+ {[%clk 0:01:26]} 48. cxd3 {[%clk 0:00:14]}  Kxd3 {[%clk 0:01:27]} 49. a5 {[%clk 0:00:15]}  Ke2 {[%clk 0:01:26]} 50. a6 {[%clk 0:00:15]}  d3 {[%clk 0:01:27]} 51. a7 {[%clk 0:00:15]}  d2 {[%clk 0:01:27]} 52. a8=Q {[%clk 0:00:15]}  d1=Q+ {[%clk 0:01:28]} 53. Kb2 {[%clk 0:00:16]}  Qd4+ {[%clk 0:01:27]} 54. Kb1 {[%clk 0:00:16]}  Kd2 {[%clk 0:01:22]} 55. Qa5+ {[%clk 0:00:14]}  Kd1 {[%clk 0:01:22]} 56. Qa3 {[%clk 0:00:08]}  Qb6+ {[%clk 0:01:20]} 57. Qb2 {[%clk 0:00:08]}  Qg6+ {[%clk 0:01:21]} 58. Ka1 {[%clk 0:00:07]}  Qa6+ {[%clk 0:01:21]} 59. Kb1 {[%clk 0:00:07]}  Qd3+ {[%clk 0:01:21]} 60. Ka1 {[%clk 0:00:07]}  Qc2 {[%clk 0:01:20]} 61. Qxc2+ {[%clk 0:00:08]}  Kxc2 {[%clk 0:01:21]} 1/2-1/2


[Site "https://www.chess.com"]